fUSD/lending_fUSD_20240531
["ID","MTS","AMOUNT","RATE_DAILY","PERIOD"]
[328326594,1717168241619,-646.20566883,0.000329,30]
[328326595,1717168241631,-2923.62999489,0.000329,30]
[328326596,1717168241641,-512.6225756,0.000329,30]
[328326597,1717168241652,-589.56767004,0.000329,30]
[328326598,1717168241663,-583.68376119,0.000329,30]
[328326599,1717168242598,-8993.94499656,0.000329,30]
[328326600,1717168242609,-674.44,0.000329,30]
[328326601,1717168242620,-168396.89739793,0.000329,30]
[328326602,1717168242632,-324.43169441,0.000329,30]
[328326603,1717168242645,-705.66335534,0.000329,30]
[328326604,1717168242657,-11831.2285315,0.000329,30]
[328326605,1717168242670,-29907.72066876,0.000329,30]
[328326606,1717168242682,-853.28293677,0.000329,30]
[328326607,1717168242848,-678.09489965,0.000329,30]
[328326608,1717168242859,-702.71462112,0.000329,30]
[328326609,1717168242871,-507.65898413,0.000329,30]
[328326610,1717168242882,-585.77164061,0.000329,30]
[328326629,1717168243751,-1022.90774952,0.00027581,2]
[328326633,1717168243761,-553.72080106,0.000329,30]
[328326636,1717168243773,-3260.77639339,0.000329,30]
[328326638,1717168243785,-5986.35641945,0.000329,30]
[328326640,1717168243798,-4593.21228781,0.000329,30]
[328326643,1717168243813,-1894.54376506,0.000329,30]
[328326645,1717168244089,-727.00837594,0.000329,30]
[328326646,1717168244104,-333.18053612,0.000329,30]
[328326647,1717168244118,-702.73490188,0.000329,30]
[328326648,1717168244132,-447.79883512,0.000329,30]
[328326649,1717168244145,-419.87653924,0.000329,30]
[328326650,1717168244158,-264.67910129,0.000329,30]
[328326651,1717168244171,-740.90642046,0.000329,30]
[328326652,1717168244186,-351.01955767,0.000329,30]
[328326653,1717168244201,-293.80853246,0.000329,30]
[328326654,1717168244214,-1728.53770147,0.000329,30]
[328326655,1717168244230,-851.90336111,0.000329,30]
[328326656,1717168244244,-443.4506406,0.000329,30]
[328326657,1717168244257,-719.32322223,0.000329,30]
[328326658,1717168244272,-467.94047194,0.000329,30]
[328326659,1717168244285,-5240.08156891,0.000329,30]
[328326660,1717168244299,-613.09825755,0.000329,30]
[328326661,1717168244313,-371.88983172,0.000329,30]
[328326662,1717168244328,-1279.97005618,0.000329,30]
[328326663,1717168244342,-833.87987711,0.000329,30]
[328326664,1717168244354,-500.0,0.00032904,3]
[328326665,1717168244366,-500.0,0.00032905,3]
[328326666,1717168244377,-153.25751709,0.00032911,7]
[328326667,1717168244387,-57.6626158,0.00032912,3]
[328326668,1717168244400,-442.3373842,0.00032912,3]
[328326669,1717168244411,-1153.18434529,0.00032914,2]
[328326670,1717168244422,-500.0,0.00032914,3]
[328326671,1717168244433,-2538.38083892,0.00032922,10]
[328326672,1717168244446,-151.42,0.00032926,2]
[328326673,1717168244457,-500.0,0.00032929,3]
[328326674,1717168244469,-500.0,0.00032934,11]
[328326675,1717168244481,-500.0,0.00032934,11]
[328326677,1717168244493,-500.0,0.00032934,11]
[328326679,1717168244504,-500.0,0.00032934,11]
[328326681,1717168244515,-500.0,0.00032934,11]
[328326682,1717168244525,-500.0,0.00032934,11]
[328326683,1717168244535,-500.0,0.00032934,11]
[328326684,1717168244544,-265.98,0.00032934,11]
[328326685,1717168244554,-500.0,0.00032936,11]
[328326686,1717168244564,-500.0,0.00032936,11]
[328326687,1717168244575,-313.66152845,0.00032936,11]
[328326688,1717168244585,-330.10885904,0.00032936,11]
[328326689,1717168244595,-500.0,0.00032936,11]
[328326690,1717168244605,-500.0,0.00032936,11]
[328326691,1717168244616,-500.0,0.00032936,11]
[328326692,1717168244626,-500.0,0.00032936,11]
[328326693,1717168244637,-500.0,0.00032936,11]
[328326694,1717168244647,-500.0,0.00032936,11]
[328326695,1717168244658,-500.0,0.00032936,11]
[328326696,1717168244670,-500.0,0.00032936,11]
[328326697,1717168244682,-500.0,0.00032936,11]
[328326698,1717168244695,-500.0,0.00032936,11]
[328326699,1717168244706,-500.0,0.00032936,11]
[328326700,1717168244718,-500.0,0.00032936,11]
[328326701,1717168244728,-500.0,0.00032936,11]
[328326702,1717168244738,-500.0,0.00032936,11]
[328326703,1717168244748,-500.0,0.00032936,11]
[328326704,1717168244758,-302.45223631,0.00032936,11]
[328326705,1717168244768,-500.0,0.00032936,11]
[328326706,1717168244779,-500.0,0.00032936,11]
[328326707,1717168244791,-500.0,0.00032936,11]
[328326708,1717168244801,-501.87,0.00032936,11]
[328326709,1717168244812,-500.0,0.00032936,11]
[328326710,1717168244824,-500.0,0.00032936,11]
[328326711,1717168244835,-500.0,0.00032936,11]
[328326712,1717168244846,-500.0,0.00032936,11]
[328326713,1717168244858,-430.4006544,0.00032936,11]
[328326714,1717168244869,-95.47510529,0.00032936,11]
[328326715,1717168244884,-404.52489471,0.00032936,11]
[328326716,1717168244895,-500.0,0.00032936,11]
[328326717,1717168244905,-500.0,0.00032936,11]
[328326718,1717168244915,-500.0,0.00032936,11]
[328326719,1717168244926,-500.0,0.00032936,11]
[328326720,1717168244936,-500.0,0.00032936,11]
[328326721,1717168244948,-500.0,0.00032936,11]
[328326722,1717168244959,-500.0,0.00032936,11]
[328326723,1717168244970,-309.66998114,0.00032936,11]
[328326724,1717168245748,-190.33001886,0.00032936,11]
[328326725,1717168245759,-456.38218424,0.00032936,11]
[328326726,1717168245772,-43.61781576,0.00032936,11]
[328326727,1717168245782,-500.0,0.00032936,11]
[328326728,1717168245792,-500.0,0.00032936,11]
[328326729,1717168245802,-199.91379658,0.00032936,11]
[328326730,1717168245845,-300.08620342,0.00032936,11]
[328326731,1717168245856,-448.54610231,0.00032936,11]
[328326732,1717168245868,-51.45389769,0.00032936,11]
[328326733,1717168245878,-500.0,0.00032936,11]
[328326734,1717168245888,-253.84,0.00032936,11]
[328326735,1717168245899,-9.25874644,0.00032936,11]
[328326736,1717168245911,-490.74125356,0.00032936,11]
[328326737,1717168245921,-500.0,0.00032936,11]
[328326738,1717168245931,-500.0,0.00032936,11]
[328326739,1717168245941,-572.13,0.00032936,11]
[328326740,1717168245952,-637.32395763,0.00032936,11]
[328326741,1717168245962,-500.0,0.00032936,11]
[328326742,1717168245973,-500.0,0.00032936,11]
[328326743,1717168245983,-561.8,0.00032936,11]
[328326744,1717168245994,-500.0,0.00032936,11]
[328326745,1717168246005,-500.0,0.00032936,11]
[328326746,1717168246016,-500.0,0.00032936,11]
[328326747,1717168246026,-500.0,0.00032936,11]
[328326748,1717168246037,-500.0,0.00032936,11]
[328326749,1717168246048,-500.0,0.00032936,11]
[328326750,1717168246059,-500.0,0.00032936,11]
[328326751,1717168246070,-500.0,0.00032936,11]
[328326752,1717168246081,-500.0,0.00032936,11]
[328326753,1717168246092,-500.0,0.00032936,11]
[328326754,1717168246104,-500.0,0.00032936,11]
[328326755,1717168246114,-500.0,0.00032936,11]
[328326756,1717168246125,-500.0,0.00032936,11]
[328326757,1717168246136,-500.0,0.00032936,11]
[328326758,1717168246148,-500.0,0.00032936,11]
[328326759,1717168246159,-321.68,0.00032936,11]
[328326760,1717168246169,-328.03,0.00032936,11]
[328326761,1717168246180,-500.0,0.00032936,11]
[328326762,1717168246194,-500.0,0.00032936,11]
[328326763,1717168246204,-500.0,0.00032936,11]
[328326764,1717168246214,-575.98,0.00032936,11]
[328326765,1717168246228,-550.58,0.00032936,11]
[328326766,1717168246239,-500.0,0.00032936,11]
[328326767,1717168246250,-620.52,0.00032936,11]
[328326768,1717168246266,-437.85413612,0.00032936,11]
[328326769,1717168246276,-500.0,0.00032936,11]
[328326770,1717168246287,-219.50006231,0.00032936,11]
[328326771,1717168246300,-338.06884613,0.00032936,11]
[328326772,1717168246310,-500.0,0.00032936,11]
[328326773,1717168246320,-500.0,0.00032936,11]
[328326774,1717168246330,-500.0,0.00032936,11]
[328326775,1717168246341,-500.0,0.00032936,11]
[328326776,1717168246352,-99.68973125,0.00032936,11]
[328326778,1717168246474,-261.79908076,0.00032936,11]
[328326779,1717168246486,-500.0,0.00032936,11]
[328326780,1717168246497,-500.0,0.00032936,11]
[328326781,1717168246516,-500.0,0.00032936,11]
[328326782,1717168246527,-500.0,0.00032936,11]
[328326783,1717168246538,-500.0,0.00032936,11]
[328326784,1717168246551,-569.99,0.00032936,11]
[328326785,1717168246563,-500.0,0.00032936,11]
[328326786,1717168246575,-500.0,0.00032936,2]
[328326787,1717168246587,-500.0,0.00032936,2]
[328326788,1717168246598,-500.0,0.00032936,11]
[328326789,1717168246609,-479.88120003,0.00032936,11]
[328326790,1717168246619,-500.0,0.00032936,11]
[328326791,1717168246630,-500.0,0.00032936,11]
[328326792,1717168246642,-500.0,0.00032936,11]
[328326793,1717168246653,-583.79,0.00032936,11]
[328326795,1717168246663,-500.0,0.00032936,11]
[328326798,1717168246673,-206.63822857,0.00032936,11]
[328326803,1717168246686,-293.36177143,0.00032936,11]
[328326807,1717168246698,-500.0,0.00032936,11]
[328326811,1717168246707,-411.63090077,0.00032936,11]
[328326815,1717168246723,-88.36909923,0.00032936,11]
[328326819,1717168246734,-500.0,0.00032936,11]
[328326823,1717168246744,-150.94440713,0.00032936,11]
[328326829,1717168246757,-2335.31559287,0.00032936,11]
[328326832,1717168246767,-500.0,0.00032936,11]
[328326834,1717168246778,-539.43440713,0.00032936,11]
[328326836,1717168246791,-1494.91356086,0.00032936,11]
[328326868,1717168247340,-362.14522358,0.000225,2]
[328326869,1717168247350,-366.38754424,0.000225,2]
[328326870,1717168247361,-43.92828952,0.000225,2]
[328326871,1717168247371,-155.0,0.000225,2]
[328326872,1717168247381,-155.40460047,0.000225,2]
[328326873,1717168247391,-110.86362333,0.00032888,2]
[328326874,1717168247403,-1014.8698506,0.00032888,2]
[328326875,1717168247422,-77.78712107,0.00032888,2]
[328326876,1717168247431,-451.91203201,0.00032936,11]
[328326877,1717168247440,-193.78132913,0.00032936,11]
[328326878,1717168247451,-96.65195101,0.00032936,11]
[328326879,1717168247462,-2389.60804899,0.00032936,11]
[328326880,1717168247471,-213.00197287,0.00032936,11]
[328326881,1717168247482,-286.99802713,0.00032936,11]
[328326882,1717168247493,-500.0,0.00032936,11]
[328326883,1717168247503,-500.0,0.00032936,11]
[328326884,1717168247513,-500.0,0.00032936,11]
[328326885,1717168247524,-500.0,0.00032936,11]
[328326886,1717168247532,-500.0,0.00032936,11]
[328326887,1717168247542,-238.59,0.00032936,11]
[328326888,1717168247553,-500.0,0.00032936,11]
[328326889,1717168247563,-500.0,0.00032936,11]
[328326890,1717168247573,-500.0,0.00032936,11]
[328326891,1717168247584,-525.39,0.00032936,11]
[328326892,1717168247594,-500.0,0.00032936,11]
[328326893,1717168247604,-629.11372491,0.00032936,11]
[328326894,1717168247615,-500.0,0.00032936,11]
[328326895,1717168247624,-500.0,0.00032936,11]
[328326896,1717168247633,-500.0,0.00032936,11]
[328326897,1717168247643,-500.0,0.00032936,11]
[328326898,1717168247652,-500.0,0.00032936,11]
[328326899,1717168247661,-500.0,0.00032936,11]
[328326900,1717168247670,-615.31,0.00032936,11]
[328326901,1717168247679,-204.59824796,0.00032936,11]
[328326902,1717168247690,-295.40175204,0.00032936,11]
[328326903,1717168247701,-500.0,0.00032936,11]
[328326904,1717168247709,-500.0,0.00032936,11]
[328326905,1717168247718,-500.0,0.00032936,11]
[328326906,1717168247726,-500.0,0.00032938,3]
[328326907,1717168247735,-157.17406481,0.00032938,10]
[328326908,1717168247744,-500.0,0.00032944,11]
[328326909,1717168247753,-500.0,0.00032944,11]
[328326910,1717168247763,-500.0,0.00032944,11]
[328326911,1717168247772,-500.0,0.00032944,11]
[328326912,1717168247781,-500.0,0.00032944,11]
[328326913,1717168247791,-500.0,0.00032944,11]
[328326914,1717168247800,-500.0,0.00032944,11]
[328326915,1717168247809,-500.0,0.00032944,11]
[328326916,1717168247818,-500.0,0.00032944,11]
[328326917,1717168247827,-60.69172115,0.00032944,11]
[328326918,1717168247839,-439.30827885,0.00032944,11]
[328326919,1717168247848,-280.53301946,0.00032944,11]
[328326920,1717168247859,-219.46698054,0.00032944,11]
[328326921,1717168247868,-275.67591587,0.00032944,11]
[328326922,1717168247877,-500.0,0.00032944,11]
[328326923,1717168247887,-500.0,0.00032944,11]
[328326924,1717168247896,-500.0,0.00032944,11]
[328326925,1717168247905,-500.0,0.00032944,11]
[328326926,1717168247915,-500.0,0.00032944,11]
[328326927,1717168247924,-696.77,0.00032944,11]
[328326928,1717168247933,-696.77,0.00032944,11]
[328326929,1717168247942,-696.77,0.00032944,11]
[328326930,1717168247952,-500.0,0.00032944,11]
[328326931,1717168247962,-500.0,0.00032944,11]
[328326932,1717168247971,-500.0,0.00032944,11]
[328326933,1717168247980,-500.0,0.00032944,11]
[328326934,1717168247990,-275.7836714,0.00032965,4]
[328326935,1717168247999,-801.41943755,0.0003297,2]
[328326936,1717168248009,-700.0,0.0003297,2]
[328326937,1717168248018,-700.0,0.0003297,2]
[328326938,1717168248027,-1153.18434529,0.00032971,2]
[328326939,1717168248037,-2538.38083892,0.00032978,10]
[328326940,1717168248046,-300.903,0.00032989,7]
[328326941,1717168248057,-1108.5,0.00033,8]
[328326942,1717168248067,-2000.0,0.00033,2]
[328326943,1717168248076,-2000.0,0.00033,2]
[328326944,1717168248085,-2000.0,0.00033,2]
[328326945,1717168248094,-2000.0,0.00033,2]
[328326946,1717168248103,-2025.2035,0.00033,2]
[328326947,1717168248114,-2000.0,0.00033,2]
[328326948,1717168248123,-2000.0,0.00033,2]
[328326949,1717168248133,-2000.0,0.00033,2]
[328326950,1717168248142,-2000.0,0.00033,2]
[328326951,1717168248152,-2000.0,0.00033,2]
[328326952,1717168248161,-500.0,0.00033,2]
[328326953,1717168248170,-6000.0,0.00033,7]
[328326954,1717168248178,-900.0,0.00033,34]
[328326955,1717168248187,-21593.0,0.00033,7]
[328326956,1717168248198,-689.93538,0.00033,10]
[328326957,1717168248206,-587.425334,0.00033,2]
[328326958,1717168248216,-825.0,0.00033,4]
[328326959,1717168248229,-683.22888932,0.00033,4]
[328326960,1717168248237,-940.26361468,0.00033,4]
[328326961,1717168248246,-648.91350607,0.00033,4]
[328326962,1717168248255,-733.0,0.00033,4]
[328326963,1717168248264,-305.06064231,0.00033003,4]
[328326964,1717168248273,-157.17406481,0.00033004,10]
[328326965,1717168248282,-1153.18434529,0.00033028,2]
[328326966,1717168248291,-2538.38083892,0.00033033,10]
[328326967,1717168248301,-157.17406481,0.00033069,10]
[328326968,1717168248312,-1153.18434529,0.00033085,2]
[328326969,1717168248322,-2538.38083892,0.00033089,10]
[328326970,1717168248331,-155.51282369,0.0003311,2]
[328326971,1717168248341,-157.17406481,0.00033135,10]
[328326972,1717168248349,-1153.18434529,0.00033143,2]
[328326973,1717168248358,-2538.38083892,0.00033144,10]
[328326974,1717168248369,-395.92954599,0.00033177,5]
[328326975,1717168248378,-168.5040485,0.00033177,2]
[328326976,1717168248388,-395.92954591,0.00033179,5]
[328326977,1717168248398,-395.92954591,0.00033181,5]
[328326978,1717168248407,-395.92954591,0.00033183,5]
[328326979,1717168248416,-395.92954591,0.00033185,5]
[328326980,1717168248426,-395.92954591,0.00033187,5]
[328326981,1717168248437,-395.92954591,0.0003319,5]
[328326982,1717168248450,-395.92954591,0.00033192,5]
[328326983,1717168248461,-395.92954591,0.00033194,5]
[328326984,1717168248470,-395.92954591,0.00033196,5]
[328326985,1717168248479,-395.92954591,0.00033198,5]
[328326986,1717168248488,-500.0,0.00033199,11]
[328326987,1717168248497,-500.0,0.00033199,11]
[328326988,1717168248507,-436.0,0.000332,5]
[328326989,1717168248516,-5104.80810444,0.000332,4]
[328326990,1717168248524,-277.34557316,0.000332,2]
[328326991,1717168248533,-2538.38083892,0.000332,10]
[328326992,1717168248542,-1000.86,0.000332,2]
[328326993,1717168248550,-395.92954591,0.000332,5]
[328326994,1717168248559,-157.17406481,0.000332,10]
[328326995,1717168248568,-302.86,0.000332,2]
[328326996,1717168248578,-223.54286321,0.000332,2]
[328326997,1717168248587,-737.96643474,0.000332,2]
[328326998,1717168248596,-984.22376475,0.000332,2]
[328326999,1717168248605,-213.85874638,0.000332,2]
[328327000,1717168248614,-1153.18434529,0.000332,2]
[328327001,1717168248624,-422.89472639,0.000332,2]
[328327002,1717168248633,-1503.18,0.00033205,3]
[328327003,1717168248642,-700.0,0.0003327,2]
[328327004,1717168248652,-700.0,0.0003327,2]
[328327005,1717168248662,-627.65723319,0.00033276,11]
[328327006,1717168248671,-500.0,0.00033276,11]
[328327007,1717168248680,-500.0,0.00033276,11]
[328327008,1717168248689,-212.16,0.00033276,11]
[328327009,1717168248703,-500.0,0.00033276,11]
[328327010,1717168248712,-269.65,0.00033276,11]
[328327011,1717168248720,-500.0,0.00033276,11]
[328327012,1717168248729,-500.0,0.00033276,11]
[328327013,1717168248738,-500.0,0.00033276,11]
[328327014,1717168248747,-500.0,0.00033276,11]
[328327015,1717168248756,-500.0,0.00033276,11]
[328327016,1717168248765,-500.0,0.00033276,11]
[328327017,1717168248775,-500.0,0.00033276,11]
[328327018,1717168248784,-500.0,0.00033276,11]
[328327019,1717168248793,-500.0,0.00033276,11]
[328327020,1717168248802,-500.0,0.00033276,11]
[328327021,1717168248811,-500.0,0.00033276,2]
[328327022,1717168248821,-500.0,0.00033276,11]
[328327023,1717168248830,-445.26915155,0.00033276,11]
[328327024,1717168248840,-2486.26,0.00033276,11]
[328327025,1717168248850,-500.0,0.00033276,11]
[328327026,1717168248859,-500.0,0.00033276,11]
[328327027,1717168248869,-696.77,0.00033276,11]
[328327028,1717168248878,-500.0,0.00033276,11]
[328327029,1717168248887,-500.0,0.00033276,11]
[328327030,1717168248897,-500.0,0.00033276,11]
[328327031,1717168248907,-500.0,0.00033276,11]
[328327032,1717168248917,-500.0,0.00033276,11]
[328327033,1717168248926,-500.0,0.00033276,11]
[328327034,1717168248935,-500.0,0.00033276,11]
[328327035,1717168248944,-500.0,0.00033276,11]
[328327036,1717168248956,-4585.2542274,0.00033277,2]
[328327037,1717168248966,-3518.6494365,0.00033277,2]
[328327038,1717168248976,-2452.0446457,0.00033277,2]
[328327039,1717168248985,-1385.4398548,0.00033277,2]
[328327040,1717168248994,-318.8350639,0.00033277,2]
[328327041,1717168249003,-50392.3182707,0.00033277,2]
[328327042,1717168249013,-27915.64261107,0.00033277,2]
[328327043,1717168249025,-454.68489641,0.00033277,2]
[328327044,1717168249037,-371.88291753,0.00033277,2]
[328327045,1717168249050,-1324.8,0.00033277,2]
[328327046,1717168249062,-8603.23412319,0.00033277,2]
[328327047,1717168249071,-5648.78022681,0.00033277,2]
[328327048,1717168249083,-631.34941224,0.00033277,2]
[328327049,1717168249094,-782.8313606,0.00033277,2]
[328327050,1717168249105,-4311.93766219,0.00033277,2]
[328327051,1717168249116,-491.72026531,0.00033277,2]
[328327052,1717168249128,-725.5543016,0.00033277,2]
[328327053,1717168249139,-516.2379924,0.00033277,2]
[328327054,1717168249150,-1081.119423,0.00033277,2]
[328327057,1717168453262,5925.7,0.00026183,60]
[328327071,1717168709876,-2000.0,0.00034699,30]
[328327072,1717168709901,-2000.0,0.00034699,30]
[328327073,1717168709924,-2000.0,0.00034699,30]
[328327074,1717168709947,-2000.0,0.00034699,30]
[328327075,1717168709972,-2000.0,0.00034699,30]
[328327076,1717168709995,-2000.0,0.00034699,30]
[328327077,1717168710019,-1883.8193,0.00034699,30]
[328327078,1717168710041,-496.0,0.00034699,120]
[328327079,1717168710063,-1366.07238603,0.00034699,60]
[328327080,1717168710087,-1000.0,0.00034699,30]
[328327081,1717168710108,-1000.0,0.00034699,30]
[328327082,1717168710130,-1000.0,0.00034699,30]
[328327083,1717168710153,-1000.0,0.00034699,30]
[328327084,1717168710175,-266.26855909,0.00034699,30]
[328327085,1717168710196,-1000.0,0.00034699,30]
[328327086,1717168710229,-1000.0,0.00034699,30]
[328327087,1717168710260,-1000.0,0.00034699,30]
[328327088,1717168710285,-1000.0,0.00034699,30]
[328327089,1717168710309,-1000.0,0.00034699,30]
[328327090,1717168710335,-200.30953329,0.00034699,30]
[328327091,1717168710358,-1000.0,0.00034699,60]
[328327092,1717168710382,-1000.0,0.00034699,30]
[328327093,1717168710411,-1000.0,0.00034699,30]
[328327094,1717168710435,-1000.0,0.00034699,30]
[328327095,1717168710457,-1000.0,0.00034699,60]
[328327096,1717168710481,-1000.0,0.00034699,30]
[328327097,1717168710504,-1000.0,0.00034699,30]
[328327098,1717168710528,-1000.0,0.00034699,120]
[328327099,1717168710551,-1000.0,0.00034699,60]
[328327100,1717168710577,-1000.0,0.00034699,60]
[328327101,1717168710600,-189.0,0.00034699,30]
[328327102,1717168710622,-1037.0,0.00034699,30]
[328327103,1717168710646,-1000.0,0.00034699,30]
[328327104,1717168710670,-1037.0,0.00034699,30]
[328327105,1717168710694,-1000.0,0.00034699,30]
[328327106,1717168710717,-1037.0,0.00034699,30]
[328327107,1717168710740,-1000.0,0.00034699,30]
[328327108,1717168710764,-1037.0,0.00034699,30]
[328327109,1717168710789,-1000.0,0.00034699,30]
[328327110,1717168710813,-1037.0,0.00034699,30]
[328327111,1717168710837,-1000.0,0.00034699,30]
[328327112,1717168710862,-1037.0,0.00034699,30]
[328327113,1717168710885,-1037.0,0.00034699,30]
[328327114,1717168710912,-1000.0,0.00034699,30]
[328327115,1717168710935,-1037.0,0.00034699,30]
[328327116,1717168710960,-1000.0,0.00034699,30]
[328327117,1717168710985,-1037.0,0.00034699,30]
[328327118,1717168711009,-1000.0,0.00034699,60]
[328327119,1717168711032,-1037.0,0.00034699,30]
[328327120,1717168711055,-1090.48852895,0.00034699,30]
[328327121,1717168711078,-1000.0,0.00034699,60]
[328327122,1717168711101,-1037.0,0.00034699,30]
[328327123,1717168711125,-300.78400418,0.00034699,60]
[328327124,1717168711149,-1000.0,0.00034699,60]
[328327125,1717168711172,-1037.0,0.00034699,30]
[328327126,1717168711194,-1037.0,0.00034699,30]
[328327127,1717168711216,-1000.0,0.00034699,60]
[328327128,1717168711243,-1037.0,0.00034699,30]
[328327129,1717168711266,-1000.0,0.00034699,60]
[328327130,1717168711290,-1037.0,0.00034699,30]
[328327131,1717168711314,-1000.0,0.00034699,60]
[328327132,1717168711340,-1037.0,0.00034699,30]
[328327133,1717168711362,-1000.0,0.00034699,30]
[328327134,1717168711386,-1037.0,0.00034699,30]
[328327135,1717168711414,-1000.0,0.00034699,60]
[328327136,1717168711437,-1094.20197645,0.00034699,30]
[328327137,1717168711460,-1000.0,0.00034699,120]
[328327138,1717168711486,-1000.0,0.00034699,120]
[328327139,1717168711510,-1000.0,0.00034699,60]
[328327140,1717168711533,-1000.0,0.00034699,30]
[328327141,1717168711556,-1000.0,0.00034699,60]
[328327142,1717168711580,-1000.0,0.00034699,30]
[328327143,1717168711602,-1050.48,0.00034699,60]
[328327144,1717168711626,-415.26408476,0.00034699,90]
[328327145,1717168711649,-480.8452291,0.00034699,30]
[328327146,1717168711671,-359.37191079,0.00034699,30]
[328327147,1717168711694,-1511.62713235,0.00034699,30]
[328327148,1717168711716,-830.61698813,0.00034699,30]
[328327149,1717168711738,-695.55261243,0.00034699,30]
[328327150,1717168711760,-453.57014937,0.00034699,30]
[328327151,1717168711783,-572.48880317,0.00034699,30]
[328327152,1717168711806,-182.39524722,0.00034699,120]
[328327153,1717168711831,-174.3633421,0.00034699,120]
[328327154,1717168711854,-437.94142801,0.00034699,30]
[328327155,1717168711876,-919.21005317,0.00034699,120]
[328327156,1717168711899,-447.44305962,0.00034699,30]
[328327157,1717168711921,-366.73565187,0.00034699,30]
[328327158,1717168711943,-995.44151414,0.00034699,120]
[328327159,1717168711966,-813.59073432,0.00034699,30]
[328327160,1717168711990,-1365.73440941,0.00034699,120]
[328327161,1717168712013,-821.3726536,0.00034699,30]
[328327162,1717168712035,-656.7736589,0.00034699,30]
[328327163,1717168712057,-259.16345392,0.00034699,120]
[328327164,1717168712081,-1330.54458693,0.00034699,120]
[328327165,1717168712103,-966.36254588,0.00034699,60]
[328327166,1717168712125,-1476.5409734,0.00034699,30]
[328327167,1717168712146,-196.53321028,0.00034699,30]
[328327168,1717168712304,-914.01035973,0.00034699,30]
[328327169,1717168712330,-331.55627964,0.00034699,30]
[328327170,1717168712353,-862.86289395,0.00034699,30]
[328327171,1717168712378,-349.24721753,0.00034699,120]
[328327172,1717168712403,-179.20649407,0.00034699,120]
[328327173,1717168712426,-706.50034396,0.00034699,120]
[328327174,1717168712450,-298.14450764,0.00034699,120]
[328327175,1717168712473,-545.89851395,0.00034699,30]
[328327176,1717168712497,-560.95897607,0.00034699,120]
[328327177,1717168712518,-1353.36790578,0.00034699,120]
[328327178,1717168712541,-1203.96201524,0.00034699,30]
[328327179,1717168712564,-308.51632692,0.00034699,120]
[328327180,1717168712589,-230.48119511,0.00034699,120]
[328327181,1717168712612,-840.73714614,0.00034699,30]
[328327182,1717168712635,-940.92004151,0.00034699,120]
[328327183,1717168712657,-192.17152311,0.00034699,30]
[328327184,1717168712679,-296.63201452,0.00034699,120]
[328327185,1717168712701,-340.95126454,0.00034699,30]
[328327186,1717168712722,-398.27301659,0.00034699,120]
[328327187,1717168712744,-399.32069934,0.00034699,120]
[328327188,1717168712767,-244.19726692,0.00034699,120]
[328327189,1717168712789,-251.70650715,0.00034699,30]
[328327190,1717168712811,-1535.76421553,0.00034699,30]
[328327191,1717168712835,-876.10090957,0.00034699,30]
[328327192,1717168712858,-325.6677256,0.00034699,120]
[328327193,1717168712880,-1655.06448039,0.00034699,120]
[328327194,1717168712903,-598.07112113,0.00034699,120]
[328327195,1717168712924,-925.13616734,0.00034699,30]
[328327196,1717168712946,-1385.15335507,0.00034699,30]
[328327197,1717168712968,-1088.19041506,0.00034699,30]
[328327198,1717168712990,-1730.53439561,0.00034699,120]
[328327199,1717168713012,-1015.70205457,0.00034699,120]
[328327200,1717168713035,-284.0,0.00034699,120]
[328327201,1717168713058,-400.0,0.00034699,120]
[328327202,1717168713081,-7300.0,0.00034699,120]